fUST/lending_fUST_20250315
["ID","MTS","AMOUNT","RATE_DAILY","PERIOD"]
[356154219,1741977043341,-500.0,8.219e-05,2]
[356154221,1741977043350,-839.54,8.219e-05,2]
[356154224,1741977043360,-513.56,8.219e-05,2]
[356154226,1741977043370,-19808.75,8.219e-05,2]
[356154228,1741977043379,-586.65,8.219e-05,2]
[356154230,1741977043389,-500.0,8.219e-05,2]
[356154231,1741977043399,-500.0,8.219e-05,2]
[356154234,1741977043409,-500.0,8.219e-05,2]
[356154235,1741977043419,-495.54,8.219e-05,2]
[356154236,1741977043429,-483.08054946,8.219e-05,2]
[356154237,1741977043439,-535.62,8.219e-05,2]
[356154238,1741977043448,-500.0,8.219e-05,2]
[356154240,1741977043457,-500.0,8.219e-05,2]
[356154241,1741977043467,-506.09885717,8.219e-05,2]
[356154242,1741977043477,-11682.15,8.219e-05,2]
[356154243,1741977043487,-337.31746235,8.219e-05,2]
[356154244,1741977043496,-500.0,8.219e-05,2]
[356154245,1741977043506,-500.0,8.219e-05,2]
[356154246,1741977043519,-500.0,8.219e-05,2]
[356154247,1741977043528,-500.0,8.219e-05,2]
[356154248,1741977043538,-500.0,8.219e-05,2]
[356154249,1741977043548,-500.0,8.219e-05,2]
[356154250,1741977043558,-500.0,8.219e-05,2]
[356154251,1741977043567,-554.0,8.219e-05,2]
[356154252,1741977043577,-500.0,8.219e-05,2]
[356154253,1741977043587,-585.85,8.219e-05,2]
[356154254,1741977043597,-500.0,8.219e-05,2]
[356154255,1741977043606,-503.3309288,8.219e-05,2]
[356154256,1741977043615,-500.0,8.219e-05,2]
[356154257,1741977043625,-872.34,8.219e-05,2]
[356154258,1741977043638,-500.0,8.219e-05,2]
[356154259,1741977043647,-500.0,8.219e-05,2]
[356154260,1741977043657,-500.0,8.219e-05,2]
[356154261,1741977043668,-3598.09,8.219e-05,2]
[356154262,1741977043678,-500.0,8.219e-05,2]
[356154263,1741977043687,-5633.01,8.219e-05,2]
[356154264,1741977043697,-500.0,8.219e-05,2]
[356154265,1741977043708,-3223.41,8.219e-05,2]
[356154266,1741977043718,-500.0,8.219e-05,2]
[356154267,1741977043728,-500.0,8.219e-05,2]
[356154268,1741977043738,-4368.26,8.219e-05,2]
[356154269,1741977043748,-500.0,8.219e-05,2]
[356154270,1741977043757,-500.0,8.219e-05,2]
[356154271,1741977043769,-500.0,8.219e-05,2]
[356154272,1741977043780,-508.313613,8.219e-05,2]
[356154273,1741977043789,-500.0,8.219e-05,2]
[356154274,1741977043799,-505.43277532,8.219e-05,2]
[356154275,1741977043809,-506.92281123,8.219e-05,2]
[356154276,1741977043819,-500.0,8.219e-05,2]
[356154277,1741977043828,-505.92540557,8.219e-05,2]
[356154278,1741977043838,-1479.94,8.219e-05,2]
[356154279,1741977043848,-501.32426164,8.219e-05,2]
[356154280,1741977043858,-7664.53,8.219e-05,2]
[356154281,1741977043867,-17265.71,8.219e-05,2]
[356154282,1741977043876,-500.0,8.219e-05,2]
[356154283,1741977043886,-698.47,8.219e-05,2]
[356154293,1741977044073,-500.0,8.219e-05,2]
[356154295,1741977044083,-1191.95,8.219e-05,2]
[356154297,1741977044093,-500.0,8.219e-05,2]
[356154299,1741977044103,-1564.78,8.219e-05,2]
[356154300,1741977044113,-500.0,8.219e-05,2]
[356154301,1741977044123,-500.0,8.219e-05,2]
[356154302,1741977044132,-504.88,8.219e-05,2]
[356154303,1741977044142,-500.0,8.219e-05,2]
[356154304,1741977044151,-1042.9,8.219e-05,2]
[356154305,1741977044161,-500.0,8.219e-05,2]
[356154306,1741977044171,-500.0,8.219e-05,2]
[356154307,1741977044180,-504.2212504,8.219e-05,2]
[356154308,1741977044190,-695.19,8.219e-05,2]
[356154309,1741977044199,-500.0,8.219e-05,2]
[356154310,1741977044209,-504.02652421,8.219e-05,2]
[356154311,1741977044219,-513.39967543,8.219e-05,2]
[356154312,1741977044229,-500.0,8.219e-05,2]
[356154313,1741977044239,-500.0,8.219e-05,2]
[356154314,1741977044249,-500.0,8.219e-05,2]
[356154315,1741977044258,-500.0,8.219e-05,2]
[356154316,1741977044272,-12195.72,8.219e-05,2]
[356154317,1741977044281,-500.0,8.219e-05,2]
[356154318,1741977044291,-511.91150011,8.219e-05,2]
[356154319,1741977044300,-894.1,8.219e-05,2]
[356154320,1741977044310,-500.0,8.219e-05,2]
[356154321,1741977044319,-506.86262922,8.219e-05,2]
[356154322,1741977044328,-500.0,8.219e-05,2]
[356154323,1741977044338,-572.73296397,8.219e-05,2]
[356154324,1741977044347,-505.39356557,8.219e-05,2]
[356154325,1741977044357,-500.0,8.219e-05,2]
[356154326,1741977044367,-500.0,8.219e-05,2]
[356154327,1741977044376,-504.97765047,8.219e-05,2]
[356154328,1741977044385,-317.11678761,8.219e-05,2]
[356154374,1741977113817,-186.88883218,8.1e-05,2]
[356154375,1741977195942,903.5,7.945e-05,2]
[356154376,1741977280478,24900.0,7.397e-05,2]
[356154381,1741977626453,176.9714474,7.298e-05,2]
[356154384,1741977957089,-1665.73844263,8.1e-05,2]
[356154385,1741977957110,-300.0,8.191e-05,2]
[356154386,1741977957132,-186.88883218,8.192e-05,2]
[356154387,1741977957154,-500.0,8.192e-05,2]
[356154388,1741977957175,-94.03179298,8.192e-05,2]
[356154436,1741978231990,-300.0,8.117e-05,2]
[356154438,1741978232004,-500.0,8.118e-05,2]
[356154439,1741978232014,-206.45500963,8.118e-05,2]
[356154440,1741978232024,-274.05474148,8.118e-05,2]
[356154441,1741978232034,-500.0,8.118e-05,2]
[356154442,1741978232045,-500.0,8.118e-05,2]
[356154443,1741978232055,-500.0,8.118e-05,2]
[356154444,1741978232064,-500.0,8.118e-05,2]
[356154445,1741978232074,-234.16286963,8.118e-05,2]
[356154446,1741978232085,-177389.43372817,8.119e-05,2]
[356154447,1741978232096,-173.80858201,8.119e-05,2]
[356154448,1741978232105,-500.0,8.193e-05,2]
[356154449,1741978232113,-500.0,8.193e-05,2]
[356154450,1741978232122,-500.0,8.193e-05,2]
[356154451,1741978232146,-500.0,8.193e-05,2]
[356154452,1741978232156,-500.0,8.193e-05,2]
[356154453,1741978232167,-500.0,8.193e-05,2]
[356154454,1741978232176,-500.0,8.193e-05,2]
[356154455,1741978232185,-500.0,8.193e-05,2]
[356154456,1741978232194,-500.0,8.193e-05,2]
[356154457,1741978232203,-500.0,8.193e-05,2]
[356154458,1741978232213,-309.4,8.2e-05,2]
[356154459,1741978232223,-212.59932872,8.218e-05,2]
[356154460,1741978232232,-500.0,8.219e-05,2]
[356154461,1741978232242,-500.0,8.219e-05,2]
[356154462,1741978232251,-500.94746082,8.219e-05,2]
[356154463,1741978232260,-500.0,8.219e-05,2]
[356154464,1741978232269,-597.32905734,8.219e-05,2]
[356154465,1741978232279,-296.49336089,8.219e-05,2]
[356154466,1741978232288,-185.26023685,8.219e-05,2]
[356154467,1741978232298,-500.0,8.219e-05,2]
[356154468,1741978232307,-510.50289995,8.219e-05,2]
[356154469,1741978232317,-500.0,8.219e-05,2]
[356154470,1741978232326,-500.0,8.219e-05,2]
[356154471,1741978232338,-500.0,8.219e-05,2]
[356154472,1741978232347,-190.57021611,8.219e-05,2]
[356154473,1741978232357,-500.0,8.219e-05,2]
[356154474,1741978232366,-500.0,8.219e-05,2]
[356154475,1741978232376,-500.0,8.219e-05,2]
[356154476,1741978232385,-500.0,8.219e-05,2]
[356154477,1741978232394,-500.0,8.219e-05,2]
[356154478,1741978232404,-500.0,8.219e-05,2]
[356154479,1741978232413,-589.68651889,8.219e-05,2]
[356154480,1741978232422,-500.0,8.219e-05,2]
[356154481,1741978232432,-502.7774519,8.219e-05,2]
[356154482,1741978232441,-500.0,8.219e-05,2]
[356154483,1741978232451,-500.0,8.219e-05,2]
[356154484,1741978232461,-500.0,8.219e-05,2]
[356154485,1741978232470,-500.0,8.219e-05,2]
[356154486,1741978232479,-508.25981188,8.219e-05,2]
[356154487,1741978232488,-500.0,8.219e-05,2]
[356154488,1741978232498,-500.0,8.219e-05,2]
[356154489,1741978232508,-500.0,8.219e-05,2]
[356154490,1741978232517,-500.0,8.219e-05,2]
[356154491,1741978232527,-509.97607865,8.219e-05,2]
[356154492,1741978232536,-500.0,8.219e-05,2]
[356154493,1741978232546,-529.37943619,8.219e-05,2]
[356154494,1741978232556,-511.15628478,8.219e-05,2]
[356154495,1741978232565,-510.81350676,8.219e-05,2]
[356154496,1741978232575,-500.0,8.219e-05,2]
[356154497,1741978232587,-500.0,8.219e-05,2]
[356154498,1741978232596,-500.0,8.219e-05,2]
[356154499,1741978232606,-507.48368494,8.219e-05,2]
[356154500,1741978232616,-500.0,8.219e-05,2]
[356154501,1741978232626,-502.93173202,8.219e-05,2]
[356154502,1741978232635,-500.0,8.219e-05,2]
[356154503,1741978232645,-500.0,8.219e-05,2]
[356154504,1741978232656,-500.0,8.219e-05,2]
[356154505,1741978232665,-500.0,8.219e-05,2]
[356154506,1741978232675,-500.0,8.219e-05,2]
[356154507,1741978232685,-500.0,8.219e-05,2]
[356154508,1741978232695,-500.0,8.219e-05,2]
[356154509,1741978232705,-404.52307178,8.219e-05,2]
[356154510,1741978232714,-500.0,8.219e-05,2]
[356154511,1741978232723,-500.0,8.219e-05,2]
[356154512,1741978232733,-500.0,8.219e-05,2]
[356154513,1741978232742,-505.37503767,8.219e-05,2]
[356154514,1741978232751,-512.21519098,8.219e-05,2]
[356154515,1741978232761,-600.64,8.219e-05,2]
[356154516,1741978232771,-504.39614405,8.219e-05,2]
[356154517,1741978232781,-500.0,8.219e-05,2]
[356154518,1741978232791,-539.66,8.219e-05,2]
[356154519,1741978232800,-504.54974694,8.219e-05,2]
[356154520,1741978232810,-500.0,8.219e-05,2]
[356154521,1741978232820,-507.09274131,8.219e-05,2]
[356154522,1741978232830,-500.0,8.219e-05,2]
[356154523,1741978232841,-500.0,8.219e-05,2]
[356154524,1741978232851,-508.8795629,8.219e-05,2]
[356154525,1741978232861,-500.0,8.219e-05,2]
[356154526,1741978232871,-500.0,8.219e-05,2]
[356154527,1741978232881,-500.0,8.219e-05,2]
[356154528,1741978232891,-500.0,8.219e-05,2]
[356154529,1741978232901,-513.94763878,8.219e-05,2]
[356154530,1741978232910,-500.0,8.219e-05,2]
[356154531,1741978232925,-505.95038027,8.219e-05,2]
[356154532,1741978232935,-500.0,8.219e-05,2]
[356154533,1741978232946,-500.0,8.219e-05,2]
[356154534,1741978232956,-263.03762132,8.219e-05,2]
[356154535,1741978232966,-500.0,8.219e-05,2]
[356154536,1741978232976,-500.0,8.219e-05,2]
[356154537,1741978232986,-500.0,8.219e-05,2]
[356154538,1741978232998,-500.0,8.219e-05,2]
[356154539,1741978233010,-500.0,8.219e-05,2]
[356154540,1741978233020,-500.0,8.219e-05,2]
[356154541,1741978233030,-500.0,8.219e-05,2]
[356154542,1741978233041,-500.0,8.219e-05,2]
[356154543,1741978233052,-500.0,8.219e-05,2]
[356154544,1741978233063,-577.6,8.219e-05,2]
[356154545,1741978233073,-511.90735787,8.219e-05,2]
[356154546,1741978233085,-500.0,8.219e-05,2]
[356154547,1741978233095,-500.0,8.219e-05,2]
[356154548,1741978233105,-503.34366117,8.219e-05,2]
[356154549,1741978233115,-505.64932111,8.219e-05,2]
[356154550,1741978233125,-500.0,8.219e-05,2]
[356154551,1741978233136,-500.0,8.219e-05,2]
[356154552,1741978233146,-501.0578493,8.219e-05,2]
[356154553,1741978233156,-500.59470061,8.219e-05,2]
[356154554,1741978233167,-500.0,8.219e-05,2]
[356154555,1741978233177,-503.31705394,8.219e-05,2]
[356154556,1741978233187,-500.0,8.219e-05,2]
[356154557,1741978233197,-500.0,8.219e-05,2]
[356154558,1741978233209,-500.0,8.219e-05,2]
[356154559,1741978233219,-500.0,8.219e-05,2]
[356154560,1741978233229,-503.69985546,8.219e-05,2]
[356154561,1741978233238,-500.0,8.219e-05,2]
[356154562,1741978233249,-506.28312699,8.219e-05,2]
[356154563,1741978233258,-500.0,8.219e-05,2]
[356154564,1741978233268,-500.0,8.219e-05,2]
[356154565,1741978233278,-600.36504401,8.219e-05,2]
[356154566,1741978233289,-500.0,8.219e-05,2]
[356154567,1741978233298,-484.01228235,8.219e-05,2]
[356154568,1741978233308,-330.29327872,8.219e-05,2]
[356154569,1741978233318,-500.0,8.219e-05,2]
[356154570,1741978233328,-503.04875408,8.219e-05,2]
[356154571,1741978233339,-500.0,8.219e-05,2]
[356154572,1741978233350,-171.26671365,8.219e-05,2]
[356154573,1741978233361,-500.0,8.219e-05,2]
[356154574,1741978233371,-500.0,8.219e-05,2]
[356154575,1741978233380,-500.0,8.219e-05,2]
[356154576,1741978233390,-510.25093208,8.219e-05,2]
[356154577,1741978233400,-500.0,8.219e-05,2]
[356154578,1741978233410,-500.0,8.219e-05,2]
[356154579,1741978233420,-500.0,8.219e-05,2]
[356154580,1741978233429,-500.0,8.219e-05,2]
[356154581,1741978233439,-500.0,8.219e-05,2]
[356154582,1741978233449,-500.0,8.219e-05,2]
[356154583,1741978233459,-504.48178718,8.219e-05,2]
[356154584,1741978233468,-514.03,8.219e-05,2]
[356154585,1741978233478,-500.0,8.219e-05,2]
[356154586,1741978233487,-506.90552926,8.219e-05,2]
[356154587,1741978233497,-500.0,8.219e-05,2]
[356154588,1741978233507,-500.0,8.219e-05,2]
[356154589,1741978233516,-502.46710506,8.219e-05,2]
[356154590,1741978233526,-500.0,8.219e-05,2]
[356154591,1741978233535,-500.0,8.219e-05,2]
[356154592,1741978233835,-500.0,8.219e-05,2]
[356154593,1741978233845,-500.0,8.219e-05,2]
[356154594,1741978233855,-503.13847492,8.219e-05,2]
[356154595,1741978233865,-516.9058566,8.219e-05,2]
[356154596,1741978233874,-585.99,8.219e-05,2]
[356154597,1741978233884,-727.05,8.219e-05,2]
[356154598,1741978233894,-500.0,8.219e-05,2]
[356154599,1741978233904,-500.0,8.219e-05,2]
[356154600,1741978233915,-500.0,8.219e-05,2]
[356154601,1741978233924,-500.0,8.219e-05,2]
[356154602,1741978233933,-679.14,8.219e-05,2]
[356154603,1741978233943,-976.28,8.219e-05,2]
[356154604,1741978233954,-500.0,8.219e-05,2]
[356154605,1741978233965,-500.0,8.219e-05,2]
[356154606,1741978233976,-500.0,8.219e-05,2]
[356154607,1741978233986,-500.0,8.219e-05,2]
[356154608,1741978233998,-500.0,8.219e-05,2]
[356154609,1741978234008,-280.09986892,8.219e-05,2]
[356154610,1741978234266,-219.90013108,8.219e-05,2]
[356154611,1741978234276,-500.0,8.219e-05,2]
[356154612,1741978234286,-510.78265921,8.219e-05,2]
[356154613,1741978234296,-500.0,8.219e-05,2]
[356154614,1741978234305,-522.04,8.219e-05,2]
[356154615,1741978234314,-500.0,8.219e-05,2]
[356154616,1741978234326,-175.25474088,8.219e-05,2]
[356154617,1741978234336,-500.0,8.219e-05,2]
[356154618,1741978234346,-401.0,8.219e-05,2]
[356154619,1741978234355,-981.45,8.219e-05,2]
[356154620,1741978234365,-501.53690518,8.219e-05,2]
[356154621,1741978234375,-500.0,8.219e-05,2]
[356154622,1741978234384,-500.0,8.219e-05,2]
[356154623,1741978234394,-500.0,8.219e-05,2]
[356154624,1741978234404,-500.0,8.219e-05,2]
[356154625,1741978234414,-500.0,8.219e-05,2]
[356154626,1741978234424,-500.0,8.219e-05,2]
[356154627,1741978234434,-500.0,8.219e-05,2]
[356154628,1741978234443,-500.0,8.219e-05,2]
[356154629,1741978234454,-500.0,8.219e-05,2]
[356154630,1741978234464,-570.19,8.219e-05,2]
[356154631,1741978234476,-505.55190757,8.219e-05,2]
[356154632,1741978234486,-181.19961151,8.219e-05,2]
[356154633,1741978234495,-500.0,8.219e-05,2]
[356154634,1741978234505,-502.50316653,8.219e-05,2]
[356154635,1741978234514,-500.0,8.219e-05,2]
[356154636,1741978234524,-500.0,8.219e-05,2]
[356154637,1741978234533,-500.0,8.219e-05,2]
[356154638,1741978234543,-501.3677336,8.219e-05,2]
[356154639,1741978234552,-500.0,8.219e-05,2]
[356154640,1741978234561,-542.48,8.219e-05,2]
[356154641,1741978234571,-500.0,8.219e-05,2]
[356154642,1741978234581,-500.0,8.219e-05,2]
[356154643,1741978234590,-505.54126349,8.219e-05,2]
[356154644,1741978234599,-509.18548445,8.219e-05,2]
[356154645,1741978234608,-500.0,8.219e-05,2]
[356154646,1741978234617,-748.37,8.219e-05,2]
[356154647,1741978234627,-500.0,8.219e-05,2]
[356154648,1741978234637,-505.2040237,8.219e-05,2]
[356154649,1741978234646,-505.58115245,8.219e-05,2]
[356154650,1741978234656,-500.0,8.219e-05,2]
[356154651,1741978234665,-500.0,8.219e-05,2]
[356154652,1741978234674,-502.49983906,8.219e-05,2]
[356154653,1741978234684,-559.93041302,8.219e-05,2]
[356154654,1741978234694,-500.0,8.219e-05,2]
[356154655,1741978234703,-500.0,8.219e-05,2]
[356154656,1741978234712,-500.0,8.219e-05,2]
[356154657,1741978234722,-500.0,8.219e-05,2]
[356154658,1741978234731,-500.0,8.219e-05,2]
[356154659,1741978234740,-503.95643949,8.219e-05,2]
[356154660,1741978234750,-503.05773057,8.219e-05,2]
[356154661,1741978234759,-500.0,8.219e-05,2]
[356154662,1741978234769,-500.0,8.219e-05,2]
[356154663,1741978234778,-500.0,8.219e-05,2]
[356154664,1741978234788,-500.0,8.219e-05,2]
[356154665,1741978234797,-500.0,8.219e-05,2]
[356154666,1741978234807,-500.0,8.219e-05,2]
[356154667,1741978234817,-503.92377018,8.219e-05,2]
[356154668,1741978234827,-500.0,8.219e-05,2]
[356154669,1741978234838,-500.0,8.219e-05,2]
[356154670,1741978234847,-573.4185782,8.219e-05,2]
[356154671,1741978234857,-251.07330412,8.219e-05,2]
[356154672,1741978234867,-500.0,8.219e-05,2]
[356154673,1741978234876,-500.0,8.219e-05,2]
[356154674,1741978234886,-500.0,8.219e-05,2]
[356154675,1741978234895,-500.0,8.219e-05,2]
[356154676,1741978234905,-500.0,8.219e-05,2]
[356154677,1741978234915,-541.1,8.219e-05,2]
[356154678,1741978234925,-507.3793351,8.219e-05,2]
[356154679,1741978234934,-506.87767484,8.219e-05,2]
[356154680,1741978234944,-500.0,8.219e-05,2]
[356154681,1741978234954,-398.56740077,8.219e-05,2]
[356154682,1741978234963,-500.0,8.219e-05,2]
[356154683,1741978234973,-500.0,8.219e-05,2]
[356154684,1741978234983,-500.0,8.219e-05,2]
[356154685,1741978234993,-512.00371278,8.219e-05,2]
[356154686,1741978235006,-500.0,8.219e-05,2]
[356154687,1741978235016,-500.0,8.219e-05,2]
[356154688,1741978235026,-500.0,8.219e-05,2]
[356154689,1741978235036,-500.0,8.219e-05,2]
[356154690,1741978235046,-500.0,8.219e-05,2]
[356154691,1741978235056,-500.0,8.219e-05,2]
[356154692,1741978235066,-500.0,8.219e-05,2]
[356154693,1741978235076,-500.0,8.219e-05,2]
[356154694,1741978235087,-504.53772657,8.219e-05,2]
[356154695,1741978235097,-500.0,8.219e-05,2]
[356154696,1741978235106,-500.0,8.219e-05,2]
[356154697,1741978235115,-500.0,8.219e-05,2]
[356154698,1741978235125,-500.0,8.219e-05,2]
[356154699,1741978235135,-500.0,8.219e-05,2]
[356154700,1741978235144,-396.95564892,8.219e-05,2]
[356154701,1741978235154,-500.0,8.219e-05,2]
[356154702,1741978235164,-500.0,8.219e-05,2]
[356154703,1741978235173,-500.0,8.219e-05,2]
[356154704,1741978235182,-500.0,8.219e-05,2]
[356154705,1741978235191,-504.54731262,8.219e-05,2]
[356154706,1741978235201,-500.0,8.219e-05,2]
[356154707,1741978235210,-500.0,8.219e-05,2]
[356154708,1741978235219,-500.0,8.219e-05,2]
[356154709,1741978235229,-636.82,8.219e-05,2]
[356154710,1741978235239,-500.0,8.219e-05,2]
[356154711,1741978235248,-500.0,8.219e-05,2]
[356154712,1741978235257,-500.0,8.219e-05,2]
[356154713,1741978235267,-500.0,8.219e-05,2]
[356154714,1741978235277,-500.0,8.219e-05,2]
[356154715,1741978235286,-500.0,8.219e-05,2]
[356154716,1741978235295,-500.0,8.219e-05,2]
[356154717,1741978235304,-500.0,8.219e-05,2]
[356154718,1741978235314,-500.0,8.219e-05,2]
[356154719,1741978235323,-500.0,8.219e-05,2]
[356154720,1741978235333,-500.0,8.219e-05,2]
[356154721,1741978235343,-500.0,8.219e-05,2]
[356154722,1741978235352,-500.0,8.219e-05,2]
[356154723,1741978235362,-500.0,8.219e-05,2]
[356154724,1741978235371,-500.0,8.219e-05,2]
[356154725,1741978235380,-500.0,8.219e-05,2]
[356154726,1741978235390,-500.0,8.219e-05,2]
[356154727,1741978235398,-500.0,8.219e-05,2]
[356154728,1741978235405,-500.0,8.219e-05,2]
[356154729,1741978235412,-500.0,8.219e-05,2]
[356154730,1741978235420,-500.0,8.219e-05,2]
[356154731,1741978235427,-1261.36,8.219e-05,2]
[356154732,1741978235434,-299.28197063,8.219e-05,2]
[356154733,1741978235441,-500.0,8.219e-05,2]
[356154734,1741978235449,-500.0,8.219e-05,2]
[356154735,1741978235459,-500.0,8.219e-05,2]
[356154736,1741978235469,-500.0,8.219e-05,2]
[356154737,1741978235478,-501.96962988,8.219e-05,2]
[356154738,1741978235488,-500.0,8.219e-05,2]
[356154739,1741978235497,-506.53774158,8.219e-05,2]
[356154740,1741978235507,-505.45555583,8.219e-05,2]
[356154741,1741978235517,-500.0,8.219e-05,2]
[356154742,1741978235526,-620.03,8.219e-05,2]
[356154743,1741978235536,-500.0,8.219e-05,2]
[356154744,1741978235545,-500.0,8.219e-05,2]
[356154745,1741978235554,-500.0,8.219e-05,2]
[356154746,1741978235564,-512.14496034,8.219e-05,2]
[356154747,1741978235573,-500.0,8.219e-05,2]
[356154748,1741978235583,-500.0,8.219e-05,2]
[356154749,1741978235593,-500.0,8.219e-05,2]
[356154750,1741978235603,-500.0,8.219e-05,2]
[356154751,1741978235612,-500.0,8.219e-05,2]
[356154752,1741978235621,-500.0,8.219e-05,2]
[356154753,1741978235631,-500.0,8.219e-05,2]
[356154754,1741978235640,-515.21126232,8.219e-05,2]
[356154755,1741978235649,-1135.87,8.219e-05,2]
[356154756,1741978235658,-500.0,8.219e-05,2]
[356154757,1741978235667,-500.0,8.219e-05,2]
[356154758,1741978235675,-500.0,8.219e-05,2]
[356154759,1741978235684,-607.6,8.219e-05,2]
[356154760,1741978235693,-500.0,8.219e-05,2]
[356154761,1741978235703,-611.98745902,8.219e-05,2]
[356154762,1741978235712,-1122.01,8.219e-05,2]
[356154763,1741978235721,-500.0,8.219e-05,2]
[356154764,1741978235730,-500.0,8.219e-05,2]
[356154765,1741978235739,-813.92,8.219e-05,2]
[356154766,1741978235748,-500.0,8.219e-05,2]
[356154767,1741978235758,-500.0,8.219e-05,2]
[356154768,1741978235767,-500.0,8.219e-05,2]
[356154769,1741978235776,-500.0,8.219e-05,2]
[356154770,1741978235785,-500.0,8.219e-05,2]
[356154771,1741978235795,-500.0,8.219e-05,2]
[356154772,1741978235804,-500.0,8.219e-05,2]
[356154773,1741978235814,-500.0,8.219e-05,2]
[356154774,1741978235823,-507.12011971,8.219e-05,2]
[356154775,1741978235833,-500.0,8.219e-05,2]
[356154776,1741978235843,-500.0,8.219e-05,2]
[356154777,1741978235853,-500.0,8.219e-05,2]
[356154778,1741978235863,-500.0,8.219e-05,2]
[356154779,1741978235873,-500.0,8.219e-05,2]
[356154780,1741978235883,-755.81,8.219e-05,2]
[356154781,1741978235893,-671.81,8.219e-05,2]
[356154782,1741978235903,-534.91,8.219e-05,2]
[356154783,1741978235912,-500.0,8.219e-05,2]
[356154784,1741978235922,-505.21729796,8.219e-05,2]
[356154785,1741978235932,-636.37,8.219e-05,2]
[356154786,1741978235941,-500.0,8.219e-05,2]
[356154787,1741978235951,-629.49,8.219e-05,2]
[356154788,1741978235960,-500.0,8.219e-05,2]
[356154789,1741978235969,-500.0,8.219e-05,2]
[356154790,1741978235978,-500.0,8.219e-05,2]
[356154791,1741978235987,-517.15945436,8.219e-05,2]
[356154792,1741978235998,-500.0,8.219e-05,2]
[356154793,1741978236010,-500.0,8.219e-05,2]
[356154794,1741978236020,-500.0,8.219e-05,2]
[356154795,1741978236030,-526.08112948,8.219e-05,2]
[356154796,1741978236040,-500.0,8.219e-05,2]
[356154797,1741978236050,-504.25975349,8.219e-05,2]
[356154798,1741978236059,-500.0,8.219e-05,2]
[356154799,1741978236069,-185.42520493,8.219e-05,2]
[356154800,1741978236080,-609.78,8.219e-05,2]
[356154801,1741978236090,-500.0,8.219e-05,2]
[356154802,1741978236099,-500.0,8.219e-05,2]
[356154803,1741978236109,-554.12,8.219e-05,2]
[356154804,1741978236119,-500.0,8.219e-05,2]
[356154805,1741978236129,-566.14,8.219e-05,2]
[356154806,1741978236139,-500.0,8.219e-05,2]
[356154807,1741978236149,-500.0,8.219e-05,2]
[356154808,1741978236158,-500.0,8.219e-05,2]
[356154809,1741978236167,-500.0,8.219e-05,2]
[356154810,1741978236177,-500.0,8.219e-05,2]
[356154811,1741978236186,-500.0,8.219e-05,2]
[356154812,1741978236195,-1046.45,8.219e-05,2]
[356154813,1741978236205,-500.0,8.219e-05,2]
[356154814,1741978236215,-217.58922921,8.219e-05,2]
[356154815,1741978236225,-500.0,8.219e-05,2]
[356154816,1741978236234,-500.0,8.219e-05,2]
[356154817,1741978236244,-500.0,8.219e-05,2]
[356154818,1741978236253,-757.12,8.219e-05,2]
[356154819,1741978236262,-500.0,8.219e-05,2]
[356154820,1741978236271,-574.16,8.219e-05,2]
[356154821,1741978236279,-500.0,8.219e-05,2]
[356154822,1741978236289,-500.0,8.219e-05,2]
[356154823,1741978236298,-500.0,8.219e-05,2]
[356154824,1741978236307,-514.83905766,8.219e-05,2]
[356154825,1741978236316,-507.17324702,8.219e-05,2]
[356154826,1741978236325,-500.0,8.219e-05,2]
[356154827,1741978236334,-503.99997414,8.219e-05,2]
[356154828,1741978236344,-500.0,8.219e-05,2]
[356154829,1741978236353,-500.0,8.219e-05,2]
[356154830,1741978236363,-462.93212355,8.219e-05,2]
[356154831,1741978236371,-500.0,8.219e-05,2]
[356154832,1741978236380,-500.0,8.219e-05,2]
[356154833,1741978236389,-610.0,8.219e-05,2]
[356154834,1741978236399,-582.22,8.219e-05,2]
[356154835,1741978236407,-500.0,8.219e-05,2]
[356154836,1741978236417,-500.0,8.219e-05,2]
[356154837,1741978236426,-551.82,8.219e-05,2]
[356154838,1741978236436,-500.0,8.219e-05,2]